Cogmind - Beta 13 X1 @@@ ROGUE MODE // 2023.11.18 @ 17:56:11 Player: IzRey Result: Destroyed by LO-Q2Z(R) with Subdweller Shrapnel Launcher Performance ------------- Evolutions (0) 0 Regions Visited (2) 400 Robots Destroyed (11) 55 Value Destroyed (400) 400 Prototype IDs (1) 20 Alien Tech Used (0) 0 Bonus (0) 0 TOTAL SCORE: 875 Bonus ------- None Cogmind --------- Core Integrity 0/250 Matter 245/300 Energy 250/250 System Corruption 1% Temperature Cool (0) Movement Treading (160) Location -10/Subcaves Parts ------- > --- POWER (1) -------- Ion Engine > --- PROPULSION (2) --- Light Treads Light Treads > --- UTILITY (2) ------ (None) > --- WEAPON (2) ------- Improved Assault Rifle Improved Assault Rifle > --- INVENTORY (5) ---- Wheel Compact Wheel Humpback EM Pulse Gun Peak State ------------ > --- POWER ------------ Ion Engine > --- PROPULSION ------- Light Treads Light Treads > --- UTILITY ---------- Scrap Shield > --- WEAPON ----------- Improved Assault Rifle Improved Assault Rifle > --- INVENTORY -------- Light Ion Engine Wheel Compact Wheel Small Storage Unit EM Pulse Gun [Rating: 13] Favorites ----------- Power Ion Engine Engine Ion Engine Propulsion Aluminum Leg Treads Light Treads Leg Aluminum Leg Utility Small Storage Unit Storage Small Storage Unit Processor Targeting Computer Protection Scrap Shield Weapon Small Laser Energy Gun Small Laser Ballistic Gun Light Assault Rifle Build | -11 -10 -10 ------- Run | Jun Mat Sub Slots Evolved . | . . . Power . | . . . Propulsion . | . . . Utility . | . . . Weapon . | . . . Parts Attached 6 | . 5 1 Power . | . . . Engine . | . . . Core . | . . . Reactor . | . . . Propulsion 2 | . 2 . Treads 2 | . 2 . Leg . | . . . Wheel . | . . . Hover . | . . . Flight . | . . . Utility 2 | . 1 1 Device . | . . . Storage . | . . . Processor 1 | . 1 . Hackware . | . . . Protection 1 | . . 1 Artifact . | . . . Weapon 2 | . 2 . Energy Gun . | . . . Energy Cannon . | . . . Ballistic Gun 2 | . 2 . Ballistic Cannon . | . . . Launcher . | . . . Special Weapon . | . . . Impact Weapon . | . . . Slashing Weapon . | . . . Piercing Weapon . | . . . Special Melee Weapon . | . . . Unidentified Prototypes 1 | . 1 . Parts Lost 3 | . 2 1 Power . | . . . Propulsion 2 | . 2 . Utility 1 | . . 1 Weapon . | . . . Highest Loss Streak 2 | . 2 1 To Critical Strikes . | . . . Average Slot Usage (%) 89 | . 91 83 Engine 14 | . 14 14 Treads 10 | . 5 28 Leg 17 | . 22 . Storage 11 | . 14 . Processor 5 | . 6 . Protection 2 | . . 11 Energy Gun 9 | . 12 . Ballistic Gun 18 | . 15 28 Naked Turns . | . . . Heaviest Build 29 | 12 16 29 Greatest Support 40 | 20 40 40 Greatest Overweight (x) . | . . . Average Overweight (x) . | . . . Largest Inventory Capacity 8 | 8 8 8 Average Capacity 7 | 8 8 5 Most Carried 6 | 6 6 5 Average Carried 5 | 6 5 4 Final Capacity 8 | 8 8 5 Final Carried 6 | 6 4 5 Class Distribution -------------------- 100% | Mutant Dominant Class ---------------- Mutant | -10/Materials Mutant | -10/Subcaves Resources | -11 -10 -10 ----------- Run | Jun Mat Sub Matter Collected 316 | 200 68 48 Remotely . | . . . Salvage Created 452 | . 319 133 Parts 16 | . 11 5 Haulers Intercepted . | . . . Recyclers Shooed . | . . . Parts Field Recycled . | . . . Retrieved Matter . | . . . Parts Self-Destructed 3 | . . 3 Prevented . | . . . Kills | -11 -10 -10 ------- Run | Jun Mat Sub Combat Hostiles Destroyed 10 | . 7 3 Guns 10 | . 7 3 Classes Destroyed 3 | . 2 1 Operator 1 | . 1 . Grunt 7 | . 7 . Subdweller 3 | . . 3 Best Kill Streak 2 | . 2 2 Combat Bots Only 2 | . 2 2 Max Kills in Single Turn 1 | . 1 1 Gunslinging . | . . . Exploded . | . . . Melee . | . . . Uniques/NPCs Destroyed . | . . . Combat | -11 -10 -10 -------- Run | Jun Mat Sub Damage Taken 959 | . 549 410 Core 259 | . 133 126 Absorbed by Shields . | . . . Core Remaining (%) 100 | 100 . . Volleys Fired 57 | . 44 13 Largest 2 | . 2 2 Hottest 60 | . 60 46 Shots Fired 114 | . 88 26 Gun 114 | . 88 26 Cannon . | . . . Launcher . | . . . Special . | . . . Kinetic 70 | . 44 26 Thermal 44 | . 44 . Explosive . | . . . Electromagnetic . | . . . Robot Hit Streak 13 | . 13 6 Robot Miss Streak 3 | . 3 1 Penetration Max . | . . . Secondary Targets 1 | . 1 . Max Gunslinging Chain 1 | . 1 . Shots Hit Robots 74 | . 56 18 Core Hits 27 | . 20 7 Critical Kills . | . . . Critical Parts Destroyed . | . . . Critical Strikes . | . . . Melee Attacks . | . . . Impact . | . . . Slashing . | . . . Piercing . | . . . Sneak Attacks . | . . . Combat Hostiles . | . . . Follow-up Attacks . | . . . Damage Inflicted 838 | 5 530 303 Guns 832 | . 529 303 Cannons . | . . . Explosions . | . . . Melee . | . . . Ramming 6 | 5 1 . Kinetic 518 | . 215 303 Thermal 314 | . 314 . Explosive . | . . . Electromagnetic . | . . . Impact . | . . . Slashing . | . . . Piercing . | . . . Highest Corruption 1 | . 1 1 Average Corruption 1 | . 1 1 Corruption Purged . | . . . Corruption Blocked . | . . . Effects 2 | . 1 1 Data Loss (minor) 2 | . 1 1 Overload Shots . | . . . Overflow Damage . | . . . Projectiles . | . . . Explosions . | . . . Melee . | . . . Knockbacks . | . . . Impact . | . . . Kinetic . | . . . Secondary . | . . . Self-Inflicted Damage . | . . . Shots . | . . . Rammed . | . . . Targets Rammed 3 | 2 1 . Kicked 3 | 2 1 . Crushed . | . . . Highest Temperature 180 | . 180 . Average Temperature 55 | . 55 . Received Heat Transfer 354 | . 312 42 Siege Activations . | . . . Robots Corrupted . | . . . Combat Hostiles . | . . . Parts Fried . | . . . Impact Corruptions . | . . . Robots Melted . | . . . Combat Hostiles . | . . . Parts Melted 1 | . 1 . Heat Transferred 725 | . 725 . Parts Sabotaged . | . . . Parts Stolen . | . . . Parts Stripped . | . . . Power Chain Reactions . | . . . Missiles Intercepted . | . . . Alert | -11 -10 -10 ------- Run | Jun Mat Sub Peak Influence 174 | . 174 . Initial . | . . . Average 52 | . 57 . Maximum Alert Level . | . . . Low Security (%) 100 | 100 100 . Level 1 . | . . . Level 2 . | . . . Level 3 . | . . . Level 4 . | . . . Level 5 . | . . . High Security . | . . . Max Security . | . . . Squads Dispatched 1 | . 1 . Investigation 1 | . 1 . Extermination . | . . . Reinforcement . | . . . Assault . | . . . Garrison . | . . . Intercept . | . . . Searches Triggered . | . . . Construction Impeded . | . . . Haulers Reinforced . | . . . Active Scanning Responses . | . . . Cargo Convoy Interrupts . | . . . Stealth | -11 -10 -10 --------- Run | Jun Mat Sub Distress Signals . | . . . Communications Jammed . | . . . Distress Signals . | . . . Times Spotted 26 | . 13 13 Peak Tracking Total 10 | . 3 10 Tactical Retreats . | . . . Traps | -11 -10 -10 ------- Run | Jun Mat Sub Traps Triggered 3 | . 3 . Indirectly . | . . . Trap Hack Attempts . | . . . Triggered . | . . . Disarmed . | . . . Reprogrammed . | . . . Reused . | . . . Traps Extracted . | . . . Installed . | . . . Triggered . | . . . Machines | -11 -10 -10 ---------- Run | Jun Mat Sub Machines Disabled . | . . . Max in Single Turn . | . . . Machines Repaired . | . . . Machines Sabotaged . | . . . Overloaded Fab Kills . | . . . Hacking | -11 -10 -10 --------- Run | Jun Mat Sub Machines Accessed 3 | . 3 . Terminals 3 | . 3 . Fabricators . | . . . Repair Stations . | . . . Recycling Units . | . . . Scanalyzers . | . . . Garrison Access . | . . . Total Hacks 7 | . 7 . Successful 4 | . 4 . Failed 3 | . 3 . Catastrophic . | . . . Database Lockouts . | . . . Manual . | . . . Terminals 7 | . 7 . Fabricators . | . . . Repair Stations . | . . . Recycling Units . | . . . Scanalyzers . | . . . Garrison Access . | . . . Terminal Hacks 4 | . 4 . Reinforcement Status 1 | . 1 . Zone Layout 3 | . 3 . Fabricator Hacks . | . . . Repair Station Hacks . | . . . Recycling Unit Hacks . | . . . Scanalyzer . | . . . Garrison Access Hacks . | . . . Unauthorized Hacks . | . . . Terminals . | . . . Fabricators . | . . . Repair Stations . | . . . Recycling Units . | . . . Scanalyzers . | . . . Garrison Access . | . . . Data Cores Recovered 1 | . 1 . Used . | . . . Hacking Detections 1 | . 1 . Full Trace Events . | . . . Feedback Events . | . . . Feedback Blocked . | . . . Robot Schematics Acquired . | . . . Robots Built . | . . . Authchips . | . . . Time . | . . . Total Robot Build Rating . | . . . Part Schematics Acquired . | . . . Parts Built . | . . . Authchips . | . . . Time . | . . . Total Part Build Rating . | . . . Parts Repaired . | . . . Time . | . . . Parts Recycled . | . . . Recycled Matter . | . . . Retrieved Matter . | . . . Retrieved Components . | . . . Parts Scanalyzed . | . . . Part Schematics Acquired . | . . . Parts Damaged . | . . . Bothacking | -11 -10 -10 ------------ Run | Jun Mat Sub Used RIF Installer . | . . . Robots Hacked . | . . . Non-combat . | . . . Combat . | . . . Robot Hacks Applied . | . . . Relay Couplers Released . | . . . Fabnet Peak Effective % . | . . . Robots Rewired . | . . . Allies Hacked . | . . . Hacks Repelled . | . . . Allies | -11 -10 -10 -------- Run | Jun Mat Sub Total Allies . | . . . Largest Group . | . . . Highest-Rated Group . | . . . Highest-Rated Ally . | . . . Total Orders . | . . . Ally Attacks . | . . . Total Damage . | . . . Kills . | . . . Allies Corrupted . | . . . Allies Melted . | . . . Intel | -11 -10 -10 ------- Run | Jun Mat Sub Robot Analysis Total . | . . . Derelict Logs Recovered . | . . . Drone Launches . | . . . Drone Recoveries . | . . . Exploration | -11 -10 -10 ------------- Run | Jun Mat Sub Turns Passed 791 | 56 580 155 Spaces Moved 431 | 39 322 70 Core . | . . . Treads 134 | . 64 70 Legs 297 | 39 258 . Wheels . | . . . Hover . | . . . Flight . | . . . Fastest Speed 120 | 120 120 160 Average Speed 132 | 120 127 160 Slowest Speed 160 | 120 160 160 Overloaded Moves . | . . . Propulsion Burnouts . | . . . Robots Hopped . | . . . Cave-ins Triggered . | . . . Exploration Rate (%) 20 | 3 50 8 Regions Visited 2 Branch Regions 1 Pre-discovered Areas . | . . . Known Exits Taken . | . . . Unknown Exits Taken 2 | 1 1 . Scrap Searched . | . . . Spaces Dug . | . . . Terrain Destroyed . | . . . Melee . | . . . Projectile . | . . . AOE . | . . . Terrain Rammed . | . . . Walls Destroyed . | . . . Machines Disabled . | . . . Actions | -11 -10 -10 --------- Run | Jun Mat Sub Total 547 | 48 410 89 Wait 45 | 8 37 . Move 429 | 38 321 70 Hop . | . . . Pick Up 1 | . . 1 Fast Attach 4 | . 3 1 Attach 2 | . 2 . Detach 1 | . . 1 Swap . | . . . Drop 5 | . 2 3 Fire 57 | . 44 13 Melee . | . . . Ram . | . . . Kick 3 | 2 1 . Crush . | . . . Escape Stasis . | . . . Rewire . | . . . Trap . | . . . Miscellaneous . | . . . Route ------- -11/Junkyard -10/Materials (discovered 2 exits: [*Mat] / [*Sub]) -10/Subcaves History --------- Turn | Location | Event 1 | -11/Junkyard | Discovered new exit (range 3) 57 | -11/Junkyard | Entered Materials 305 | -10/Materials | Build established: Mutant 417 | -10/Materials | Discovered new exit (range 16) 508 | -10/Materials | Core integrity fell below 50% 629 | -10/Materials | Discovered new exit (range 5) 637 | -10/Materials | Entered Subcaves 695 | -10/Subcaves | A swath of the cavern ceiling suddenly collapsed 759 | -10/Subcaves | Ambushed by swarm of Subdwellers 760 | -10/Subcaves | Ambushed by Subdwellers from Twisted Machinery 760 | -10/Subcaves | Ambushed by Subdwellers from Twisted Machinery 763 | -10/Subcaves | Ambushed by Subdwellers from Twisted Machinery 764 | -10/Subcaves | Core integrity fell below 20% 764 | -10/Subcaves | Ambushed by Subdwellers from Twisted Machinery 792 | -10/Subcaves | Destroyed by LO-Q2Z(R) with Subdweller Shrapnel Launcher Last Messages --------------- 00771_ K4-N6U(R) affixes Scrap Shield Fragment to Scrap Shield. 00771_ DH-PAW(R) suffers critical hit (Burn). 00771_ DH-PAW(R) critical meltdown. 00771_ PY-2ZL(R) suffers critical hit (Destroy). 00773_ PY-2ZL(R) suffers critical hit (Burn). LO-Q2Z(R) emerges from concealment. 00775_ PY-2ZL(R) suffers critical hit (Burn). 00777_ PY-2ZL(R) suffers critical hit (Destroy). 00777_ PY-2ZL(R) destroyed. 00778_ SE-0TS(g) destroyed. 00782_ TB-J5K(R) affixes Scrap Shield Fragment to Scrap Shield. 00783_ HV Slug penetrates Twisted Machinery. 00783_ TB-J5K(R) destroyed. 00784_ XM-LOK(R) destroyed. 00785_ DP-VRX(g) destroyed. 00786_ P9-BM1(R) suffers critical hit (Burn). 00789_ BO-CYL(R) suffers critical hit (Destroy). 00789_ BO-CYL(R) destroyed. 00789_ Scrap Shield destroyed. 00792_ UI-RDU(h) destroyed. Map ----- +----------------------------------------------------+ | ???????????????????????????????## #??????? | | ?????????????????????????????### ##??????? | | ????????????????????????????## ### #??????? | | ????????????????????????????# # # #??????? | | ???????????????????????????# # ##??????? | | ??????????????????????##?# ## ###???????? | | ??????????????????????" #?## ## #????????? | | ????????????????????? #??# # ##?????????? | | ????????????????????? "# ##### #?????????? | | ?????????????????????##" ### # # ##?????????? | | ??????????????????##??";???;#"" #??????????? | | ???????????? ????#""?#;##?; ##??????????? | | ??????????? "???#;##;;;#; #######???????????? | | ???????????? #??## ; #?????????????????? | | ??????????? ### #?????????????????? | | ???????????# # # ##?????????????????? | | ???????????# R ###??????????????????? | | ?????????????????# g;#??#?????????????????? | | ?????????????????## * &;#?"##????????????????? | | ??????????????????# % ;## "#????????????????? | | ??????????????????# ;# ##???????????????? | | ??????????????????# "##??????????????? | | ??????????????????## ! # " ???????????? | | ???????????????#![#; " ???????????? | | ???????????????#%* [ !!% " " ???????????? | | ?????????? R %%%=* @ "##??????????????? | | ???????? !&!&%[ [ ;# #???????????????? | | ????????? %=[;%*! #? #???????????????? | | ????????? # ##??????????????????? | | ??????????### ??####; #???????????????????? | | ????????????####??????# #####???????????????????? | | ??????????????????????###????????????????????????? | | ?????????????????????????????????????????????????? | | ?????????????????????????????????????????????????? | | ?????????????????????????????????????????????????? | | ?????????????????????????????????????????????????? | | ?????????????????????????????????????????????????? | | ?????????????????????????????????????????????????? | | ?????????????????????????????????????????????????? | | ?????????????????????????????????????????????????? | | ?????????????????????????????????????????????????? | | ?????????????????????????????????????????????????? | | ?????????????????????????????????????????????????? | | ?????????????????????????????????????????????????? | | ?????????????????????????????????????????????????? | | ?????????????????????????????????????????????????? | | ?????????????????????????????????????????????????? | | ?????????????????????????????????????????????????? | | ?????????????????????????????????????????????????? | | ?????????????????????????????????????????????????? | +----------------------------------------------------+ Best States ------------- Heat Dissipation 25 Energy Generation 10 Energy Capacity 250 Matter Stores 300 Matter Capacity 300 Sight Range 16 Terrain Scan Density 10 Armor Coverage 800 Evasion (%) 55 Targeting Accuracy 5 Recoil Reduction 2 Item Schematics ----------------- None Robot Schematics ------------------ None Fabricated ------------ Nothing Alien Tech Used ----------------- None Achievements -------------- None Challenges ------------ None Game ------ Seed MappingSmallInitializer Manual? 0 Play Time 00:32:31 Cumulative 515.2 hours Start 2023.11.14 @ 18:49:06 End 2023.11.18 @ 17:56:11 Sessions 8 Manual Loads 0 Difficulty Rogue Special Mode None Game No. 59 Rogue 42 Adventurer 17 Explorer 0 Win Type - Total 1 Types 1/0/0/0/0/0/0/0/0 Lore% 49 Gallery% 59 Achievement% 49 Wizard Run 0 Options --------- ASCII 0 Keyboard 0 Movement Numpad Keybinds 0 Fullscreen 1 Font 12/Smallcaps Map View 76x56 Tactical HUD 1 Map Filters NONE Filters NONE Steam 1 RUN: c688ed76-ee19-4fb4-942f-e18db562612c